bitfinex/quotes_BTCUSD_20251010
["timestamp","ask_amount","ask_price","bid_price","bid_amount"]
[1760114741132,1.90019951,119010.0,119000.0,4.9799968]
[1760114741345,0.91203249,119010.0,119000.0,5.0447968]
[1760114741574,0.18386718,119010.0,119000.0,5.0447968]
[1760114741867,0.24502718,119010.0,119000.0,5.2913568]
[1760114742113,0.38763718,119010.0,119000.0,4.9799968]
[1760114742311,0.29296718,119010.0,119000.0,5.2265568]
[1760114742436,0.29296718,119010.0,119000.0,5.0447968]
[1760114742889,0.18386718,119010.0,119000.0,5.2913168]
[1760114743110,0.19169789,119010.0,119000.0,5.2913168]
[1760114743745,0.25285789,119010.0,119000.0,5.2913168]
[1760114743954,0.25285789,119010.0,119000.0,5.0447968]
[1760114744346,0.30079789,119010.0,119000.0,5.2263968]
[1760114744714,0.30079374,119010.0,119000.0,5.2263968]
[1760114745164,0.29296718,119010.0,119000.0,4.9799968]
[1760114745382,1.16338338,119010.0,119000.0,5.2263968]
[1760114745600,1.16338338,119010.0,119000.0,5.2263568]
[1760114745816,1.16338338,119010.0,119000.0,5.22847735]
[1760114746054,0.47075924,119010.0,119000.0,5.22847735]
[1760114746727,0.23180718,119010.0,119000.0,5.29327735]
[1760114746944,0.18386718,119010.0,119000.0,5.04691735]
[1760114747159,0.18386718,119010.0,119000.0,5.29319735]
[1760114748067,0.24502718,119010.0,119000.0,5.29319735]
[1760114748515,0.29198718,119010.0,119000.0,5.29319735]
[1760114749782,0.29198718,119010.0,119000.0,5.04691735]
[1760114750220,0.23082718,119010.0,119000.0,5.38051735]
[1760114750645,0.18386718,119010.0,119000.0,5.38051735]
[1760114750851,0.18386718,119010.0,119000.0,5.45034735]
[1760114751325,0.18386718,119010.0,119000.0,5.28481457]
[1760114751568,0.18386718,119010.0,119000.0,5.64848647]
[1760114751569,0.01581408,119010.0,119000.0,5.64848647]
[1760114752420,0.18386718,119010.0,119000.0,5.31496647]
[1760114752651,0.25005718,119010.0,119000.0,5.41058925]
[1760114752865,0.18386718,119010.0,119000.0,5.32298925]
[1760114753074,0.25005718,119010.0,119000.0,5.32294925]
[1760114753298,0.18386718,119010.0,119000.0,5.49105647]
[1760114753508,0.18386718,119010.0,119000.0,5.57857647]
[1760114753729,0.01581408,119010.0,119000.0,5.64840647]
[1760114753961,0.01581408,119010.0,119000.0,5.14689925]
[1760114754181,0.01581408,119010.0,119000.0,5.64840647]
[1760114754615,0.18386718,119010.0,119000.0,5.64840647]
[1760114754824,0.18386718,119010.0,119000.0,5.31496647]
[1760114755043,0.18386718,119010.0,119000.0,5.64840647]
[1760114755279,0.18386718,119010.0,119000.0,5.56080647]
[1760114755502,0.18386718,119010.0,119000.0,5.31496647]
[1760114755702,0.18386718,119010.0,119000.0,5.64832647]
[1760114756143,0.18386718,119010.0,119000.0,5.64828647]
[1760114756351,0.01581408,119010.0,119000.0,5.31496647]
[1760114756567,0.16817909,119010.0,119000.0,5.64820647]
[1760114756789,0.18386718,119010.0,119000.0,5.64820647]
[1760114757003,0.01581408,119010.0,119000.0,5.64820647]
[1760114757219,0.16817909,119010.0,119000.0,5.41030925]
[1760114757444,1.08140132,119010.0,119000.0,4.98211735]
[1760114757660,0.98964132,119010.0,119000.0,5.37993735]
[1760114757885,0.29701718,119010.0,119000.0,5.04669735]
[1760114758120,0.29701718,119010.0,119000.0,5.37993735]
[1760114758551,0.18386718,119010.0,119000.0,5.44976735]
[1760114758768,0.18386718,119010.0,119000.0,5.61783457]
[1760114759061,0.01581408,119010.0,119000.0,5.61783457]
[1760114759277,0.16817909,119010.0,119000.0,5.64798647]
[1760114759493,0.18386718,119010.0,119000.0,5.64798647]
[1760114759930,0.18385825,119010.0,119000.0,5.64798647]
[1760114760345,0.18385825,119010.0,119000.0,5.24491647]
[1760114760560,0.18385825,119010.0,119000.0,5.07684925]
[1760114760561,0.29255825,119010.0,119000.0,5.07684925]
[1760114760765,0.29255825,119010.0,119000.0,5.01226925]
[1760114760975,0.38745825,119010.0,119000.0,5.31523735]
[1760114761184,0.38745825,119010.0,119000.0,4.98211735]
[1760114761396,0.38745825,119010.0,119000.0,5.31523735]
[1760114761617,0.38745825,119010.0,119000.0,5.22771735]
[1760114761805,0.37177909,119010.0,119000.0,5.31523735]
[1760114762017,0.38746496,119010.0,119000.0,4.98211735]
[1760114762237,0.38746496,119010.0,119000.0,5.31519735]
[1760114762669,0.37177909,119010.0,119000.0,5.31519735]
[1760114763114,0.37177909,119010.0,119000.0,5.31515735]
[1760114763321,0.33747176,119010.0,119000.0,5.31515735]
[1760114763525,0.24257176,119010.0,119000.0,5.31515735]
[1760114763746,0.24257176,119010.0,119000.0,5.38106735]
[1760114763968,0.24257176,119010.0,119000.0,5.54913457]
[1760114764193,0.22687909,119010.0,119000.0,4.98211735]
[1760114764421,0.24257403,119010.0,119000.0,5.29346735]
[1760114764639,0.33747403,119010.0,119000.0,5.22755735]
[1760114764857,0.24257403,119010.0,119000.0,5.29346735]
[1760114765551,0.24257403,119010.0,119000.0,5.22755735]
[1760114765777,0.24257403,119010.0,119000.0,5.29346735]
[1760114766205,0.24257403,119010.0,119000.0,5.29338735]
[1760114766416,0.24257403,119010.0,119000.0,5.38090735]
[1760114768185,0.24257403,119010.0,119000.0,5.31499735]
[1760114768592,0.24257403,119010.0,119000.0,5.38090735]
[1760114768796,0.18374804,119010.0,119000.0,5.61880457]
[1760114769046,0.24444804,119010.0,119000.0,5.38090735]
[1760114769454,0.07639494,119010.0,119000.0,5.04802735]
[1760114769671,0.29244804,119010.0,119000.0,5.38062735]
[1760114770562,0.29144804,119010.0,119000.0,5.38062735]
[1760114770986,0.29144804,119010.0,119000.0,5.54869457]
[1760114771188,0.29144804,119010.0,119000.0,5.38062735]
[1760114771401,0.29144804,119010.0,119000.0,5.54869457]
[1760114772046,0.29144804,119010.0,119000.0,5.38062735]
[1760114772254,0.29144804,119010.0,119000.0,5.04802735]
[1760114772461,0.85633615,119010.0,119000.0,5.22691735]
[1760114772672,0.29931925,119010.0,119000.0,5.22691735]
[1760114772884,0.29931925,119010.0,119000.0,5.29282735]
[1760114773306,0.29931925,119010.0,119000.0,4.98211735]
[1760114773517,0.39421925,119010.0,119000.0,5.31439735]
[1760114773925,0.39421977,119010.0,119000.0,5.31439735]
[1760114774133,0.29931977,119010.0,119000.0,5.38030735]
[1760114774399,0.29144804,119010.0,119000.0,5.38030735]
[1760114774605,0.38634804,119010.0,119000.0,4.98211735]
[1760114774815,0.29144804,119010.0,119000.0,5.22687735]
[1760114775018,0.29144804,119010.0,119000.0,5.46085457]
[1760114775678,0.01469494,119010.0,119000.0,5.46085457]
[1760114775908,0.01469494,119010.0,119000.0,5.53068457]
[1760114777084,0.01469494,119010.0,119000.0,5.46085457]
[1760114777294,0.18512818,119030.0,119010.0,0.1680531]
[1760114777504,0.58582818,119030.0,119020.0,0.53019287]
[1760114777719,0.58582818,119030.0,119020.0,0.34535]
[1760114778132,1.14284508,119030.0,119020.0,0.27944]
[1760114778380,1.23774508,119030.0,119020.0,0.03492]
[1760114778587,0.16803898,119020.0,119010.0,0.0805016]
[1760114778795,0.1087,119020.0,119010.0,0.5589447]
[1760114778996,0.27673898,119020.0,119010.0,0.5938647]
[1760114779370,1.18544632,119030.0,119010.0,0.6636947]
[1760114779371,0.53352942,119030.0,119010.0,0.6636947]
[1760114779576,0.21596486,119030.0,119010.0,0.6636947]
[1760114779778,0.21696486,119030.0,119010.0,0.6636947]
[1760114779986,0.21696486,119030.0,119020.0,0.2444]
[1760114780198,0.31086486,119030.0,119020.0,0.31253047]
[1760114780407,0.37156486,119030.0,119020.0,0.31253047]
[1760114780619,0.37256486,119030.0,119020.0,0.06813047]
[1760114780843,0.16803898,119020.0,119010.0,0.1154216]
[1760114781046,0.21603898,119020.0,119010.0,0.5803947]
[1760114781257,0.27673898,119020.0,119010.0,0.6812247]
[1760114781472,0.27673898,119020.0,119010.0,0.5131716]
[1760114781686,0.27673898,119020.0,119010.0,0.4472616]
[1760114782136,0.86888176,119030.0,119010.0,0.4472616]
[1760114782137,0.21696486,119030.0,119020.0,0.16803898]
[1760114782372,0.001,119030.0,119020.0,0.38377578]
[1760114782587,0.001,119030.0,119020.0,0.41392768]
[1760114782808,0.58013299,119050.0,119030.0,0.16801701]
[1760114783027,0.64083299,119050.0,119040.0,0.2792]
[1760114783238,0.64083299,119050.0,119040.0,0.37655623]
[1760114783466,0.71999647,119050.0,119040.0,0.31064623]
[1760114783702,1.27701337,119050.0,119040.0,0.03144623]
[1760114783909,1.27701337,119050.0,119040.0,0.24424]
[1760114783910,5.92222716,119050.0,119040.0,0.24424]
[1760114784113,6.22222716,119050.0,119040.0,0.24424]
[1760114784547,0.16802486,119030.0,119020.0,0.08752]
[1760114784749,0.16803898,119020.0,119010.0,0.3136266]
[1760114784966,0.16803898,119020.0,119010.0,0.7113366]
[1760114785170,0.31092486,119030.0,119010.0,0.7113366]
[1760114785383,0.16802486,119030.0,119020.0,0.16803898]
[1760114785593,0.21602486,119030.0,119020.0,0.24803578]
[1760114785838,0.21602486,119030.0,119020.0,0.31394578]
[1760114786060,0.78144076,119040.0,119030.0,0.16802486]
[1760114786272,0.16801075,119040.0,119030.0,0.34507]
[1760114786491,0.37161075,119040.0,119030.0,0.34541358]
[1760114786912,0.27671075,119040.0,119030.0,0.41132358]
[1760114787126,0.56439647,119050.0,119030.0,0.64917844]
[1760114787355,0.51639647,119050.0,119040.0,0.01580107]
[1760114787571,0.16799664,119050.0,119040.0,0.22796127]
[1760114787778,0.16799664,119050.0,119040.0,0.11005945]
[1760114787982,0.16799664,119050.0,119040.0,0.2780702]
[1760114788202,0.22869664,119050.0,119040.0,0.35421945]
[1760114788410,0.16799664,119050.0,119040.0,0.35421945]
[1760114788624,0.22858664,119050.0,119040.0,0.11005945]
[1760114788836,0.92681354,119050.0,119040.0,0.28826945]
[1760114789045,0.92581354,119050.0,119040.0,0.04414945]
[1760114789256,0.92681354,119050.0,119040.0,0.24412]
[1760114789657,0.92681354,119050.0,119040.0,0.24408]
[1760114789901,0.92581354,119050.0,119040.0,0.24408]
[1760114790655,0.16801075,119040.0,119030.0,0.10174359]
[1760114790856,0.36881075,119040.0,119030.0,0.43326359]
[1760114791094,0.27692075,119040.0,119030.0,0.49628359]
[1760114791440,0.77333354,119050.0,119030.0,0.73413845]
[1760114791654,0.21631664,119050.0,119040.0,0.18481182]
[1760114791861,0.27690664,119050.0,119040.0,0.31102755]
[1760114792076,0.44130319,119060.0,119040.0,0.31102755]
[1760114792275,0.00141319,119060.0,119050.0,0.51670664]
[1760114792495,0.83532261,119060.0,119050.0,0.34198]
[1760114792706,0.16799664,119050.0,119030.0,0.27816659]
[1760114792927,0.21631664,119050.0,119030.0,0.36128865]
[1760114793156,0.21631664,119050.0,119040.0,0.49961075]
[1760114793381,0.27690664,119050.0,119040.0,0.56263075]
[1760114793610,0.27703379,119050.0,119040.0,0.64262755]
[1760114794063,0.36892379,119050.0,119040.0,0.0799968]
[1760114794268,0.36892379,119050.0,119040.0,0.33156]
[1760114794472,0.16812379,119050.0,119040.0,0.23103075]
[1760114794712,0.16801075,119040.0,119030.0,0.26976845]
[1760114794932,0.00012715,119050.0,119040.0,0.31855075]
[1760114795158,0.00012715,119050.0,119040.0,0.54486075]
[1760114795373,0.00012715,119050.0,119040.0,0.71237755]
[1760114796864,0.16812379,119050.0,119040.0,0.71237755]
[1760114796985,0.22871379,119050.0,119040.0,0.31102755]
[1760114797182,0.27703379,119050.0,119040.0,0.0799968]
[1760114797428,0.21644379,119050.0,119040.0,0.23103075]
[1760114797629,0.16801075,119040.0,119030.0,0.26976845]
[1760114797851,0.19418557,119050.0,119040.0,0.16801075]
[1760114798057,0.16801075,119040.0,119030.0,0.10174359]
[1760114798259,0.27692075,119040.0,119030.0,0.66414845]
[1760114798467,0.16801075,119040.0,119030.0,0.66414845]
[1760114798723,0.16801075,119040.0,119030.0,0.57662845]
[1760114798914,0.16801075,119040.0,119030.0,0.33278845]
[1760114799158,0.27692075,119040.0,119030.0,0.66406845]
[1760114799585,0.27692075,119040.0,119030.0,0.57654845]
[1760114799795,0.27692075,119040.0,119030.0,0.66402845]
[1760114800150,0.10891,119040.0,119030.0,0.66402845]
[1760114800371,0.27692075,119040.0,119030.0,0.66402845]
[1760114800573,0.19418557,119050.0,119040.0,0.16801075]
[1760114800685,0.04832,119050.0,119040.0,0.24800755]
[1760114800893,0.22611483,119060.0,119050.0,0.16799664]
[1760114801143,0.22611483,119060.0,119050.0,0.0984448]
[1760114801346,0.28670483,119060.0,119050.0,0.0984448]
[1760114801552,0.28670483,119060.0,119050.0,0.0354248]
[1760114801796,0.93561173,119060.0,119050.0,0.35996804]
[1760114802139,0.93561173,119060.0,119050.0,0.27248804]
[1760114803007,1.31873379,119060.0,119050.0,0.02884804]
[1760114803213,1.31873379,119060.0,119050.0,0.0005048]
[1760114803425,1.31873379,119060.0,119050.0,0.2441048]
[1760114803662,1.31973379,119060.0,119050.0,0.2441048]
[1760114803891,1.31973379,119060.0,119050.0,0.0005048]
[1760114804133,1.31973379,119060.0,119050.0,0.2440648]
[1760114804347,1.31973379,119060.0,119050.0,0.02491128]
[1760114804571,1.31973379,119060.0,119050.0,0.0005048]
[1760114804864,7.07037865,119060.0,119050.0,0.0005048]
[1760114805076,7.47980464,119060.0,119050.0,1e-08]
[1760114805287,7.49788332,119060.0,119050.0,1e-08]
[1760114805742,7.49788137,119060.0,119050.0,1e-08]
[1760114805963,7.52703327,119060.0,119050.0,1e-08]
[1760114806194,7.52803327,119060.0,119050.0,1e-08]
[1760114806412,7.55070455,119060.0,119050.0,1e-08]
[1760114806636,7.54970455,119060.0,119050.0,1e-08]
[1760114807055,7.55070455,119060.0,119050.0,1e-08]
[1760114807704,6.96910679,119060.0,119050.0,1e-08]
[1760114807922,8.17062059,119060.0,119050.0,1e-08]
[1760114808601,7.57806059,119060.0,119050.0,1e-08]
[1760114808808,6.90541414,119060.0,119050.0,1e-08]
[1760114809046,7.76679976,119060.0,119050.0,1e-08]
[1760114809266,6.58074286,119060.0,119050.0,1e-08]
[1760114809481,6.16094794,119060.0,119050.0,1e-08]
[1760114809693,6.40142794,119060.0,119050.0,1e-08]
[1760114809917,6.74142794,119060.0,119050.0,1e-08]
[1760114810127,6.74342794,119060.0,119050.0,1e-08]
[1760114810574,7.62988181,119060.0,119050.0,1e-08]
[1760114810776,7.38640181,119060.0,119050.0,1e-08]
[1760114811432,6.82738491,119060.0,119050.0,1e-08]
[1760114811649,6.52838491,119060.0,119050.0,1e-08]
[1760114811867,6.74254794,119060.0,119050.0,1e-08]
[1760114812076,5.94193104,119060.0,119050.0,1e-08]
[1760114812290,6.74254794,119060.0,119050.0,1e-08]
[1760114812569,6.49894794,119060.0,119050.0,1e-08]
[1760114812790,1.92438104,119060.0,119050.0,1e-08]
[1760114813024,2.21177016,119060.0,119050.0,1e-08]
[1760114813255,2.21077016,119060.0,119050.0,1e-08]
[1760114813472,1.61073016,119060.0,119050.0,1e-08]
[1760114814132,1.60973016,119060.0,119050.0,1e-08]
[1760114814337,1.36617016,119060.0,119050.0,1e-08]
[1760114814560,1.2664327,119060.0,119050.0,1e-08]
[1760114814783,1.18331064,119060.0,119050.0,1e-08]
[1760114815011,1.18331064,119060.0,119050.0,0.08543001]
[1760114815232,1.18331064,119060.0,119050.0,0.11426586]
[1760114815463,1.18331064,119060.0,119050.0,0.08543001]
[1760114815683,1.18331064,119060.0,119050.0,0.02456001]
[1760114816389,1.27462064,119060.0,119050.0,0.02456001]
[1760114816593,0.71760374,119060.0,119050.0,0.02456001]
[1760114817041,1.18331064,119060.0,119050.0,0.08543001]
[1760114817264,1.18331955,119060.0,119050.0,0.09746501]
[1760114817476,1.033424,119060.0,119050.0,0.09746501]
[1760114817894,1.033424,119060.0,119050.0,0.11426467]
[1760114818507,1.086544,119060.0,119050.0,0.11426467]
[1760114819087,0.1764071,119060.0,119050.0,0.28226131]
[1760114819313,0.16798252,119060.0,119050.0,0.60146165]
[1760114819516,0.17637132,119070.0,119060.0,0.16798252]
[1760114819709,0.17637132,119070.0,119060.0,0.11186442]
[1760114819874,0.17637132,119070.0,119060.0,0.26566442]
[1760114820300,0.79524832,119070.0,119060.0,0.11186442]
[1760114820521,0.16798252,119060.0,119050.0,0.03659501]
[1760114820746,0.85653942,119060.0,119050.0,0.01203501]
[1760114820952,0.91001942,119060.0,119050.0,0.01203501]
[1760114821161,1.66257845,119060.0,119050.0,1e-08]
[1760114821368,6.20179937,119060.0,119050.0,1e-08]
[1760114821956,7.05881627,119060.0,119050.0,1e-08]
[1760114822779,7.07690059,119060.0,119050.0,1e-08]
[1760114822980,6.85092369,119060.0,119050.0,1e-08]
[1760114823212,7.40794059,119060.0,119050.0,1e-08]
[1760114823421,7.43809249,119060.0,119050.0,1e-08]
[1760114824425,7.09135086,119060.0,119050.0,1e-08]
[1760114824575,7.4400438,119060.0,119050.0,1e-08]
[1760114824912,7.4390038,119060.0,119050.0,1e-08]
[1760114825120,7.47877991,119060.0,119050.0,1e-08]
[1760114825533,7.05827994,119060.0,119050.0,1e-08]
[1760114825737,7.08730611,119060.0,119050.0,1e-08]
[1760114825945,7.08630611,119060.0,119050.0,1e-08]
[1760114826150,7.08730611,119060.0,119050.0,1e-08]
[1760114826364,7.05815421,119060.0,119050.0,1e-08]
[1760114826565,7.12927049,119060.0,119050.0,1e-08]
[1760114826802,6.79831049,119060.0,119050.0,1e-08]
[1760114827023,7.09924432,119060.0,119050.0,1e-08]
[1760114827655,7.0903935,119060.0,119050.0,1e-08]
[1760114827839,7.0893935,119060.0,119050.0,1e-08]
[1760114828040,7.08342885,119060.0,119050.0,1e-08]
[1760114828274,7.08242885,119060.0,119050.0,1e-08]
[1760114828480,7.08234885,119060.0,119050.0,1e-08]
[1760114828682,7.08334885,119060.0,119050.0,1e-08]
[1760114829272,7.10688269,119060.0,119050.0,1e-08]
[1760114829683,6.74597079,119060.0,119050.0,1e-08]
[1760114829931,6.06556713,119060.0,119050.0,1e-08]
[1760114830114,6.36556713,119060.0,119050.0,1e-08]
[1760114830314,6.26876713,119060.0,119050.0,1e-08]
[1760114830525,1.75309813,119060.0,119050.0,1e-08]
[1760114830843,2.09109813,119060.0,119050.0,1e-08]
[1760114831063,1.75109813,119060.0,119050.0,1e-08]
[1760114831272,1.72366116,119060.0,119050.0,1e-08]
[1760114831527,1.47946116,119060.0,119050.0,1e-08]
[1760114831745,0.08905,119060.0,119050.0,0.27055631]
[1760114831954,0.20952252,119060.0,119050.0,0.29266961]
[1760114832176,0.04154,119060.0,119050.0,0.29266961]
[1760114832395,0.00052976,119070.0,119060.0,0.16798252]
[1760114832619,0.00052976,119070.0,119060.0,0.35670252]
[1760114832837,0.16849818,119070.0,119060.0,0.26410252]
[1760114833051,0.00052976,119070.0,119060.0,0.33216819]
[1760114833274,0.16849818,119070.0,119060.0,0.33216819]
[1760114834369,0.00052976,119070.0,119060.0,0.33216819]
[1760114834583,0.16849818,119070.0,119060.0,0.57536819]
[1760114834802,0.00052976,119070.0,119060.0,0.57536819]
[1760114835018,0.00052976,119070.0,119060.0,0.66796819]
[1760114835944,0.16849818,119070.0,119060.0,0.66796819]
[1760114836162,0.00052976,119070.0,119060.0,0.66796819]
[1760114836375,0.16849818,119070.0,119060.0,0.40722567]
[1760114836586,0.16849818,119070.0,119060.0,0.66780819]
[1760114836814,0.00052976,119070.0,119060.0,0.66780819]
[1760114837029,0.16849818,119070.0,119060.0,0.66780819]
[1760114837243,0.00052976,119070.0,119060.0,0.66780819]
[1760114837893,0.00052976,119070.0,119060.0,0.75093025]
[1760114838110,0.00052976,119070.0,119060.0,1.47461598]
[1760114838945,0.00052976,119070.0,119060.0,1.56201598]
[1760114839153,0.00052976,119070.0,119060.0,1.56301598]
[1760114839391,0.00052976,119070.0,119060.0,0.86948215]
[1760114840437,0.00052976,119070.0,119060.0,0.53904215]
[1760114840657,0.00052976,119070.0,119060.0,0.86940215]
[1760114841066,0.00052976,119070.0,119060.0,1.56293598]
[1760114841636,0.00052976,119070.0,119060.0,0.86940215]
[1760114842070,0.00052976,119070.0,119060.0,0.78184215]
[1760114842275,0.00052976,119070.0,119060.0,0.86928215]
[1760114842477,0.00052976,119070.0,119060.0,0.53904215]
[1760114843059,0.00052976,119070.0,119060.0,0.86928215]
[1760114843440,0.00052976,119070.0,119060.0,1.56281598]
[1760114843645,0.00052976,119070.0,119060.0,1.92781597]
[1760114844087,0.00052976,119070.0,119060.0,1.92785597]
[1760114844498,0.00052976,119070.0,119060.0,1.59757597]
[1760114844700,0.00052976,119070.0,119060.0,1.23432214]
[1760114845931,0.00052976,119070.0,119060.0,1.92785597]
[1760114846537,0.40619503,119110.0,119100.0,0.16792611]
[1760114846728,0.40619503,119110.0,119100.0,0.8035148]
[1760114846729,0.03386593,119110.0,119100.0,0.8035148]
[1760114846982,0.03386593,119110.0,119100.0,0.7160748]
[1760114847164,0.03386593,119110.0,119100.0,0.8035548]
[1760114847412,0.03386593,119110.0,119100.0,0.62779274]
[1760114847413,0.20177794,119110.0,119100.0,0.62779274]
[1760114847616,0.90949269,119120.0,119100.0,0.62779274]
[1760114847787,0.16841697,119110.0,119100.0,0.12970663]
[1760114847986,0.25777697,119110.0,119100.0,0.37238663]
[1760114848195,1.0446708,119110.0,119100.0,0.06950663]
[1760114848365,1.0446708,119110.0,119100.0,0.31218663]
[1760114848566,1.0446708,119110.0,119100.0,0.27626663]
[1760114849167,1.05248921,119110.0,119100.0,0.27626663]
[1760114849368,0.95912921,119110.0,119100.0,0.50835274]
[1760114849573,0.74203879,119110.0,119100.0,0.54327274]
[1760114849749,0.00050496,119110.0,119100.0,0.64077274]
[1760114850094,0.16841697,119110.0,119100.0,0.64077274]
[1760114850294,0.17623459,119110.0,119100.0,0.64077274]
[1760114850466,0.00832258,119110.0,119100.0,0.64077274]
[1760114850689,0.16841697,119110.0,119100.0,0.64077274]
[1760114851322,0.17623416,119110.0,119100.0,0.64077274]
[1760114851869,0.22419416,119110.0,119100.0,0.54327274]
[1760114852252,0.17623416,119110.0,119100.0,0.54327274]
[1760114852492,0.17835242,119110.0,119100.0,0.37534663]
[1760114852696,0.36427242,119110.0,119100.0,0.27622663]
[1760114852906,0.17835242,119110.0,119100.0,0.54323274]
[1760114853297,0.19399812,119110.0,119100.0,0.54323274]
[1760114853715,0.24244812,119110.0,119100.0,0.13266663]
[1760114853929,0.28750812,119110.0,119100.0,0.37518663]
[1760114854140,0.37992812,119110.0,119100.0,0.27610663]
[1760114854814,0.28750812,119110.0,119100.0,0.37518663]
[1760114854936,0.19399812,119110.0,119100.0,0.54311274]
[1760114855138,0.19399812,119110.0,119100.0,0.47268663]
[1760114855561,0.19399812,119110.0,119100.0,0.54311274]
[1760114855769,0.24195812,119110.0,119100.0,0.13266663]
[1760114855973,0.28701812,119110.0,119100.0,0.31098663]
[1760114856168,0.28701812,119110.0,119100.0,0.06850663]
[1760114856399,0.16792611,119100.0,119090.0,0.34942623]
[1760114856640,0.02347512,119100.0,119090.0,0.65606623]
[1760114856762,0.1757433,119100.0,119090.0,0.65606623]
[1760114857203,0.19140214,119100.0,119090.0,0.65606623]
[1760114857600,0.23936214,119100.0,119090.0,0.65606623]
[1760114857864,0.23936214,119100.0,119090.0,0.40614354]
[1760114858184,0.28442214,119100.0,119090.0,0.64862354]
[1760114858474,0.37778214,119100.0,119090.0,0.14430333]
[1760114858693,1.10914924,119100.0,119070.0,0.2008932]
[1760114858896,0.30636875,119090.0,119080.0,0.24248]
[1760114859105,0.23648478,119090.0,119080.0,0.24248]
[1760114859321,0.29040478,119090.0,119080.0,0.41043431]
[1760114859530,0.29040478,119090.0,119080.0,0.50433431]
[1760114859756,0.29040478,119090.0,119080.0,0.52017111]
[1760114859962,0.29043784,119090.0,119080.0,0.58433111]
[1760114860172,0.29043784,119090.0,119080.0,0.58429111]
[1760114860389,0.29043784,119090.0,119080.0,0.52013111]
[1760114860566,0.27476511,119090.0,119080.0,0.58429111]
[1760114860831,0.29045039,119090.0,119080.0,0.58429111]
[1760114861256,0.29045039,119090.0,119080.0,0.3521768]
[1760114861474,1.41694422,119090.0,119080.0,0.0809968]
[1760114861693,1.50006628,119090.0,119080.0,0.001]
[1760114862160,1.74250628,119090.0,119080.0,0.001]
[1760114862409,0.50795431,119080.0,119070.0,0.24244]
[1760114862649,0.16796842,119070.0,119060.0,0.34542567]
[1760114862874,0.29363006,119070.0,119060.0,0.10298567]
[1760114863086,0.38644006,119070.0,119060.0,0.06806567]
[1760114863290,0.16798252,119060.0,119050.0,0.0403261]
[1760114863466,0.93009799,119060.0,119050.0,0.24385314]
[1760114863691,1.08602799,119060.0,119050.0,0.24385314]
[1760114863899,1.38602799,119060.0,119050.0,0.00141314]
[1760114864250,1.80915005,119060.0,119050.0,0.00141314]
[1760114864456,1.80918105,119060.0,119050.0,0.00141314]
[1760114865662,6.37734645,119060.0,119050.0,0.00141314]
[1760114865970,6.70730645,119060.0,119050.0,0.00141314]
[1760114866542,6.59038948,119060.0,119050.0,0.00141314]
[1760114866744,0.16802486,119030.0,119020.0,0.25]
[1760114866947,1.08114133,119030.0,119020.0,0.28820147]
[1760114867162,1.07329045,119030.0,119020.0,0.28820147]
[1760114867391,1.49641251,119030.0,119020.0,0.28820147]
[1760114867552,1.74673515,119030.0,119020.0,0.28820147]
[1760114868167,2.04673515,119030.0,119020.0,0.28820147]
[1760114869105,1.80422098,119030.0,119020.0,0.28820147]
[1760114869282,2.04674098,119030.0,119020.0,0.28820147]
[1760114869483,1.80420463,119030.0,119020.0,0.28820147]
[1760114869711,2.04672463,119030.0,119020.0,0.28820147]
[1760114869893,1.80420463,119030.0,119020.0,0.28820147]
[1760114870095,2.04672463,119030.0,119020.0,0.28820147]
[1760114871976,1.80420463,119030.0,119020.0,0.28820147]
[1760114872203,2.12637834,119030.0,119020.0,0.28820147]
[1760114872609,1.04536451,119030.0,119020.0,0.28820147]
[1760114872827,1.34536451,119030.0,119020.0,0.28820147]
[1760114873033,2.03889834,119030.0,119020.0,0.28979155]
[1760114873569,1.79637834,119030.0,119020.0,0.28979155]
[1760114873771,1.34540451,119030.0,119020.0,0.28979155]
[1760114873912,2.03893834,119030.0,119020.0,0.28979155]
[1760114874541,6.55460734,119030.0,119020.0,0.28979155]
[1760114874749,6.85460734,119030.0,119020.0,0.28979155]
[1760114875115,6.61204734,119030.0,119020.0,0.28979155]
[1760114875324,2.33893834,119030.0,119020.0,0.28979155]
[1760114875527,2.42641834,119030.0,119020.0,0.28979155]
[1760114875949,2.09637834,119030.0,119020.0,0.28979155]
[1760114876154,2.42641834,119030.0,119020.0,0.28979155]
[1760114876672,2.42489839,119030.0,119020.0,0.28979155]
[1760114877379,2.33641839,119030.0,119020.0,0.28979155]
[1760114877615,2.42393839,119030.0,119020.0,0.28979155]
[1760114877826,6.93960739,119030.0,119020.0,0.28979155]
[1760114879321,6.94740948,119030.0,119020.0,0.28979155]
[1760114879734,6.61732948,119030.0,119020.0,0.28979155]
[1760114879913,6.94744948,119030.0,119020.0,0.28979155]
[1760114880340,2.10166048,119030.0,119020.0,0.28979155]
[1760114880502,0.82941245,119030.0,119020.0,0.38697155]
[1760114880714,0.86318245,119030.0,119020.0,0.32471155]
[1760114880925,1.65530628,119030.0,119020.0,0.28979155]
[1760114881526,2.03842834,119030.0,119020.0,0.28979155]
[1760114881729,1.79582834,119030.0,119020.0,0.28979155]
[1760114881927,2.03842834,119030.0,119020.0,0.28979155]
[1760114882716,1.79582834,119030.0,119020.0,0.28979155]
[1760114882917,6.5619039,119030.0,119020.0,0.28979155]
[1760114884794,6.5619039,119030.0,119020.0,0.25174155]
[1760114885261,6.58090922,119030.0,119020.0,0.25174155]
[1760114885667,6.44453708,119030.0,119020.0,1e-08]
[1760114885840,6.47468898,119030.0,119020.0,1e-08]
[1760114886070,6.50395248,119030.0,119020.0,1e-08]
[1760114886337,6.50495248,119030.0,119020.0,1e-08]
[1760114886767,6.91741383,119030.0,119020.0,1e-08]
[1760114886930,6.34717093,119030.0,119020.0,1e-08]
[1760114887175,6.29543904,119030.0,119020.0,1e-08]
[1760114887465,6.97567904,119030.0,119020.0,1e-08]
[1760114887673,6.97565595,119030.0,119020.0,1e-08]
[1760114887880,6.97465595,119030.0,119020.0,1e-08]
[1760114888096,6.97365595,119030.0,119020.0,1e-08]
[1760114888300,6.9113146,119030.0,119020.0,1e-08]
[1760114888547,6.86466227,119030.0,119020.0,1e-08]
[1760114888749,6.89391706,119030.0,119020.0,1e-08]
[1760114888955,7.45107875,119030.0,119020.0,1e-08]
[1760114889177,7.47355585,119030.0,119020.0,1e-08]
[1760114889413,6.91641023,119030.0,119020.0,1e-08]
[1760114889651,7.44531713,119030.0,119020.0,1e-08]
[1760114889851,1.138205,119010.0,119000.0,4.45094227]
[1760114890066,1.138205,119010.0,119000.0,4.45106942]
[1760114890067,7.9697716,119010.0,119000.0,4.45106942]
[1760114890298,8.1257816,119010.0,119000.0,4.45106942]
[1760114890504,7.56861991,119010.0,119000.0,4.45106942]
[1760114890712,7.56865102,119010.0,119000.0,4.45106942]
[1760114891131,7.56965098,119010.0,119000.0,4.45106942]
[1760114891365,7.57065098,119010.0,119000.0,4.45106942]
[1760114891782,7.63520242,119010.0,119000.0,4.025725]
[1760114891990,8.19236411,119010.0,119000.0,3.83044072]
[1760114892199,8.21484121,119010.0,119000.0,3.67488316]
[1760114892406,8.21484121,119010.0,119000.0,3.56204361]
[1760114893530,7.65767952,119010.0,119000.0,3.56204361]